fUSD/lending_fUSD_20251211
["ID","MTS","AMOUNT","RATE_DAILY","PERIOD"]
[398245441,1765454537955,151.0,0.00015799,2]
[398245442,1765454538375,500.0,0.00015799,2]
[398245443,1765454538531,500.0,0.00015799,2]
[398245444,1765454538560,200.0,0.00015799,2]
[398245445,1765454538601,151.0,0.00015799,2]
[398245446,1765454539002,500.0,0.00015799,2]
[398245447,1765454539172,500.0,0.00015799,2]
[398245448,1765454539204,151.0,0.00015799,2]
[398245449,1765454539632,500.0,0.00015799,2]
[398245450,1765454539791,500.0,0.00015799,2]
[398245451,1765454539821,151.0,0.00015799,2]
[398245452,1765454540308,473.99709559,0.00015799,2]
[398245453,1765454540394,48.26450972,0.00015799,2]
[398245454,1765454540417,451.73549028,0.00015799,2]
[398245455,1765454540451,151.0,0.00015799,2]
[398245456,1765454540849,500.0,0.00015798,2]
[398245457,1765454541019,500.0,0.00015799,2]
[398245458,1765454541048,151.0,0.00015799,2]
[398245459,1765454541094,522.35435032,0.00015798,2]
[398245460,1765454541622,500.0,0.00015799,2]
[398245461,1765454541661,151.0,0.00015799,2]
[398245462,1765454542302,500.0,0.00015799,2]
[398245463,1765454542341,151.0,0.00015799,2]
[398245464,1765454542923,636.50815894,0.00015799,2]
[398245465,1765454542953,151.0,0.00015799,2]
[398245466,1765454543559,151.0,0.00015799,2]
[398245467,1765454551290,500.0,0.00015799,2]
[398245468,1765454551879,151.0,0.00015799,2]
[398245469,1765454552362,151.0,0.00015799,2]
[398245470,1765454553042,151.0,0.00015799,2]
[398245471,1765454553770,151.0,0.00015799,2]
[398245472,1765454554387,151.0,0.00015799,2]
[398245473,1765454554998,151.0,0.00015799,2]
[398245474,1765454555622,151.0,0.00015799,2]
[398245475,1765454556275,151.0,0.00015799,2]
[398245476,1765454556895,151.0,0.00015799,2]
[398245477,1765454557615,151.0,0.00015799,2]
[398245478,1765454558233,151.0,0.00015799,2]
[398245479,1765454569321,500.0,0.00015798,2]
[398245480,1765454569554,500.0,0.00015798,2]
[398245481,1765454569787,500.0,0.00015798,2]
[398245482,1765454579596,1200.0,0.00015798,2]
[398245483,1765454580233,500.0,0.00015798,2]
[398245484,1765454580473,122.41200046,0.00015798,2]
[398245485,1765454580495,374.17043525,0.00015798,2]
[398245486,1765454581383,300.0,0.00015798,2]
[398245487,1765454581585,158.0,0.00015798,2]
[398245488,1765454581961,300.0,0.00015798,2]
[398245489,1765454591217,8867.83956475,0.00015699,2]
[398245490,1765454591242,5484.79064189,0.00015699,2]
[398245491,1765454607330,4121.489062,0.00015719,2]
[398245492,1765454628892,393.73029611,0.00015798,2]
[398245493,1765454628914,25.30410687,0.00015798,2]
[398245494,1765454638329,9974.70589313,0.00015699,2]
[398245495,1765454638352,25.30410687,0.00015699,2]
[398245496,1765454641613,270.0,0.00015798,2]
[398245497,1765454644395,2006.5649,0.00015699,2]
[398245498,1765454677008,1046.82,0.00015798,2]
[398245499,1765454677259,1046.82,0.00015798,2]
[398245500,1765454677492,1046.82,0.00015798,2]
[398245501,1765454701282,1200.0,0.00015798,2]
[398245502,1765454701326,300.0,0.00015798,2]
[398245507,1765454759896,2223.96464829,0.00015699,2]
[398245508,1765454761987,300.0,0.00015798,2]
[398245509,1765454773459,533.71634484,0.00015798,2]
[398245510,1765454773482,466.28365516,0.00015798,2]
[398245517,1765454798070,-567.89571326,0.00015799,2]
[398245521,1765454800153,-288.53531446,0.00015799,2]
[398245525,1765454808439,9533.72634484,0.00015699,2]
[398245526,1765454808462,10000.01,0.00015699,2]
[398245527,1765454808485,466.28365516,0.00015699,2]
[398245540,1765454824924,200.0,0.00015799,2]
[398245541,1765454827865,151.0,0.00015799,2]
[398245542,1765454828080,500.0,0.00015799,2]
[398245543,1765454828523,151.0,0.00015799,2]
[398245544,1765454829128,154.86697558,0.00015799,2]
[398245545,1765454832131,192.6,0.00015799,2]
[398245546,1765454837325,500.0,0.00015798,2]
[398245547,1765454838413,151.0,0.00015799,2]
[398245560,1765454854615,231.02384457,0.00015699,2]
[398245568,1765454879794,1200.0,0.00015798,2]
[398245569,1765454888435,3135.41,8.437e-05,2]
[398245570,1765454888834,3135.41,8.881e-05,2]
[398245571,1765454889068,297.69917985,9.325e-05,2]
[398245572,1765454889092,2837.71082015,9.325e-05,2]
[398245573,1765454889278,3135.41,9.769e-05,2]
[398245574,1765454889492,3135.41,0.00010213,2]
[398245575,1765454889690,891.47917985,0.00010657,2]
[398245576,1765454889712,2243.93082015,0.00010657,2]
[398245577,1765454889882,3135.41,0.00011101,2]
[398245578,1765454890079,3135.41,0.00011545,2]
[398245579,1765454890284,1485.25917985,0.00011989,2]
[398245580,1765454890309,1650.15082015,0.00011989,2]
[398245581,1765454890498,3135.41,0.00012433,2]
[398245582,1765454890792,3135.41,0.00012877,2]
[398245583,1765454891001,2079.03917985,0.00013322,2]
[398245584,1765454891025,1056.37082015,0.00013322,2]
[398245585,1765454891205,3135.41,0.00013766,2]
[398245586,1765454891404,3135.41,0.0001421,2]
[398245587,1765454891607,2672.81917985,0.00014654,2]
[398245588,1765454891629,462.59082015,0.00014654,2]
[398245589,1765454891834,3135.41,0.00015098,2]
[398245590,1765454892032,3135.41,0.00015542,2]
[398245594,1765454910958,915.97,0.00015798,2]
[398245595,1765454911207,915.97,0.00015798,2]
[398245596,1765454911512,915.97,0.00015798,2]
[398245597,1765454914351,518.68917985,0.00015699,2]
[398245598,1765454914381,481.31082015,0.00015699,2]
[398245599,1765454916055,-197.7872548,0.00015799,2]
[398245600,1765454919912,-382.83897228,0.00015799,2]
[398245601,1765454929442,9518.69917985,0.00015699,2]
[398245602,1765454929469,10000.01,0.00015699,2]
[398245603,1765454929496,10000.01,0.00015699,2]
[398245604,1765454929522,10000.01,0.00015699,2]
[398245605,1765454929547,10000.01,0.00015699,2]
[398245606,1765454929573,10000.01,0.00015699,2]
[398245607,1765454929598,10000.01,0.00015699,2]
[398245608,1765454929623,10000.01,0.00015699,2]
[398245609,1765454929653,2549.83412015,0.00015699,2]
[398245610,1765454951376,2804.0,0.000157,2]
[398245614,1765454978539,7196.01,0.00015699,2]
[398245615,1765454978561,10000.01,0.00015699,2]
[398245616,1765454978583,10000.01,0.00015699,2]
[398245617,1765454978605,10000.01,0.00015699,2]
[398245618,1765454978628,10000.01,0.00015699,2]
[398245619,1765454978650,3047.0443,0.00015699,2]
[398245620,1765454984631,2500.0,0.00015699,2]
[398245628,1765455032131,-4201.65523545,0.00015699,2]
[398245629,1765455032187,-800.0,0.00015699,2]
[398245630,1765455032243,-1678.69066455,0.00015699,2]
[398245631,1765455032253,-500.0,0.00015798,2]
[398245632,1765455032262,-500.0,0.00015798,2]
[398245633,1765455032272,-279.08598277,0.00015798,2]
[398245634,1765455032282,-282.0,0.00015798,2]
[398245635,1765455032293,-1000.0,0.00015799,2]
[398245636,1765455032302,-250.0,0.00015799,2]
[398245637,1765455032311,-300.0,0.00015799,2]
[398245638,1765455032320,-300.0,0.00015799,2]
[398245639,1765455032330,-195.0,0.00015799,2]
[398245640,1765455032339,-300.0,0.00015799,2]
[398245641,1765455032349,-300.0,0.00015799,2]
[398245642,1765455032358,-274.50587794,0.00015799,2]
[398245643,1765455032368,-195.0,0.00015799,2]
[398245644,1765455032378,-151.0,0.00015799,2]
[398245645,1765455032387,-224.43537645,0.00015799,2]
[398245646,1765455032397,-5524.0,0.000158,3]
[398245647,1765455032406,-1200.0,0.00015897,2]
[398245648,1765455032416,-300.0,0.00015897,2]
[398245649,1765455032425,-500.0,0.00015898,2]
[398245650,1765455032435,-156.68030338,0.00015898,2]
[398245651,1765455032444,-500.0,0.00015898,2]
[398245652,1765455032455,-500.0,0.00015898,2]
[398245653,1765455032467,-304.5266766,0.00015898,2]
[398245654,1765455032478,-500.0,0.00015898,2]
[398245655,1765455032488,-500.0,0.00015898,2]
[398245656,1765455032497,-641.1096514,0.00015898,2]
[398245657,1765455032507,-500.0,0.0001595,2]
[398245658,1765455032518,-500.0,0.0001595,2]
[398245660,1765455032527,-3135.41,0.00015986,2]
[398245662,1765455032537,-5524.0,0.00016,5]
[398245664,1765455032547,-550.0,0.00016199,2]
[398245666,1765455032556,-999.0,0.00016268,3]
[398245667,1765455032565,-238.18,0.0001629,2]
[398245668,1765455032575,-8179.15678255,0.00016402,2]
[398245669,1765455032584,-3135.41,0.0001643,2]
[398245671,1765455032594,-436.02605526,0.00016437,2]
[398245674,1765455032603,-500.0,0.00016438,2]
[398245676,1765455032612,-500.0,0.00016438,2]
[398245678,1765455032622,-160.82343171,0.00016438,2]
[398245680,1765455032631,-500.0,0.00016438,2]
[398245682,1765455032640,-500.0,0.00016438,2]
[398245684,1765455032650,-160.82343171,0.00016438,2]
[398245685,1765455032660,-500.0,0.00016438,2]
[398245687,1765455032669,-500.0,0.00016438,2]
[398245689,1765455032679,-160.82343171,0.00016438,2]
[398245691,1765455032687,-500.0,0.00016438,2]
[398245693,1765455032696,-160.82343171,0.00016438,2]
[398245695,1765455032706,-500.0,0.00016438,2]
[398245697,1765455032715,-500.0,0.00016438,2]
[398245699,1765455032724,-500.0,0.00016438,2]
[398245700,1765455032734,-160.82343171,0.00016438,2]
[398245701,1765455032743,-500.0,0.00016438,2]
[398245702,1765455032752,-500.0,0.00016438,2]
[398245703,1765455032761,-160.82343171,0.00016438,2]
[398245704,1765455032771,-500.0,0.00016438,2]
[398245705,1765455032780,-500.0,0.00016438,2]
[398245706,1765455032790,-160.82343171,0.00016438,2]
[398245707,1765455032799,-500.0,0.00016438,2]
[398245708,1765455032809,-500.0,0.00016438,2]
[398245709,1765455032818,-160.82343171,0.00016438,2]
[398245710,1765455032827,-500.0,0.00016438,2]
[398245711,1765455032836,-500.0,0.00016438,2]
[398245712,1765455032846,-500.0,0.00016438,2]
[398245713,1765455032855,-160.82343171,0.00016438,2]
[398245714,1765455032864,-500.0,0.00016438,2]
[398245715,1765455032874,-500.0,0.00016438,2]
[398245716,1765455032883,-160.82343171,0.00016438,2]
[398245717,1765455032892,-500.0,0.00016438,2]
[398245718,1765455032902,-160.82343171,0.00016438,2]
[398245719,1765455032911,-500.0,0.00016438,2]
[398245720,1765455032920,-500.0,0.00016438,2]
[398245721,1765455032929,-500.0,0.00016438,2]
[398245722,1765455032938,-160.82343171,0.00016438,2]
[398245723,1765455032947,-500.0,0.00016438,2]
[398245724,1765455032957,-500.0,0.00016438,2]
[398245725,1765455032966,-160.82343171,0.00016438,2]
[398245726,1765455032975,-500.0,0.00016438,2]
[398245727,1765455032984,-160.82343171,0.00016438,2]
[398245728,1765455032993,-500.0,0.00016438,2]
[398245729,1765455033003,-150.0,0.00016485,2]
[398245730,1765455033012,-250.0,0.00016539,2]
[398245731,1765455033021,-812.94,0.00016551,2]
[398245732,1765455033031,-668.94,0.0001659,2]
[398245733,1765455033040,-2083.74,0.00016592,2]
[398245734,1765455033050,-385.82,0.00016671,2]
[398245735,1765455033060,-386.72,0.00016851,2]
[398245736,1765455033069,-3135.41,0.00016874,2]
[398245737,1765455033079,-317.99,0.00016986,2]
[398245738,1765455033088,-813.24,0.00016999,2]
[398245739,1765455033097,-2000.0,0.00017,2]
[398245740,1765455033107,-250.0,0.00017,2]
[398245741,1765455033117,-1000.0,0.00017168,2]
[398245742,1765455033126,-813.24,0.00017273,2]
[398245743,1765455033135,-1004.0,0.00017276,2]
[398245744,1765455033145,-733.0,0.00017317,2]
[398245745,1765455033154,-168.0,0.0001733,2]
[398245746,1765455033164,-250.0,0.00017348,2]
[398245747,1765455033174,-205.93622854,0.00017355,2]
[398245748,1765455033184,-195.0,0.00017378,2]
[398245749,1765455033193,-195.0,0.00017379,2]
[398245750,1765455033203,-288.70593134,0.00017379,2]
[398245751,1765455033212,-300.0,0.00017379,2]
[398245752,1765455033223,-300.0,0.00017379,2]
[398245753,1765455033232,-195.0,0.00017379,2]
[398245754,1765455033243,-300.0,0.00017379,2]
[398245755,1765455033252,-300.0,0.00017379,2]
[398245756,1765455033262,-300.0,0.00017379,2]
[398245757,1765455033272,-250.0,0.00017379,2]
[398245758,1765455033281,-420.0,0.00017383,2]
[398245759,1765455033291,-500.0,0.00017398,2]
[398245760,1765455033301,-500.0,0.00017398,2]
[398245761,1765455033311,-1680.0,0.0001747,2]
[398245762,1765455033322,-1000.0,0.00017488,3]
[398245763,1765455033331,-813.24,0.00017547,2]
[398245764,1765455033341,-1380.98566234,0.00017578,2]
[398245765,1765455033351,-168.0,0.00017632,2]
[398245766,1765455033360,-1000.0,0.00017742,2]
[398245767,1765455033370,-299.225,0.00017742,2]
[398245768,1765455033380,-1852.42,0.00017765,2]
[398245769,1765455033389,-357.58137952,0.00017783,2]
[398245770,1765455033399,-168.0,0.00017797,2]
[398245771,1765455033409,-1273.46205061,0.000178,2]
[398245772,1765455033418,-813.24,0.00017821,2]
[398245773,1765455033427,-357.58137951,0.00017842,2]
[398245774,1765455033436,-200.0,0.00017856,2]
[398245775,1765455033446,-8465.689945,0.00017876,2]
[398245776,1765455033455,-168.0,0.00017883,2]
[398245777,1765455033468,-3080.0203248,0.00017887,2]
[398245778,1765455033477,-646.76745084,0.000179,2]
[398245779,1765455033487,-201.5613949,0.000179,2]
[398245780,1765455033496,-357.58137951,0.000179,2]
[398245781,1765455033507,-9937.8686451,0.000179,2]
[398245782,1765455033520,-2979.49854084,0.000179,2]
[398245783,1765455033529,-16668.59648626,0.000179,2]
[398245784,1765455033538,-500.0,0.000179,2]
[398245785,1765455033548,-500.0,0.000179,2]
[398245786,1765455033557,-500.0,0.000179,2]
[398245787,1765455033567,-500.0,0.000179,2]
[398245788,1765455033576,-352.01731301,0.000179,2]
[398245789,1765455033587,-1000.0,0.0001791,2]
[398245790,1765455033596,-285.0,0.00017911,2]
[398245791,1765455033606,-500.0,0.00017918,2]
[398245792,1765455033616,-2000.0,0.00017935,2]
[398245793,1765455033626,-571.84,0.00017935,2]
[398245794,1765455033636,-150.0,0.00017947,2]
[398245795,1765455033646,-500.0,0.00017947,2]
[398245796,1765455033657,-500.0,0.00017947,2]
[398245797,1765455033666,-500.0,0.00017947,2]
[398245798,1765455033676,-500.0,0.00017947,2]
[398245799,1765455033685,-500.0,0.00017947,2]
[398245800,1765455033694,-500.0,0.00017947,2]
[398245801,1765455033704,-500.0,0.00017947,2]
[398245802,1765455033715,-221.27996839,0.00017947,2]
[398245803,1765455033724,-3403.57,0.0001797,2]
[398245804,1765455033733,-150.0,0.00017973,2]
[398245805,1765455033743,-150.0,0.00017973,2]
[398245806,1765455033753,-150.0,0.00017973,2]
[398245807,1765455033763,-150.0,0.00017973,2]
[398245808,1765455033772,-229.0889974,0.00017973,2]
[398245809,1765455033782,-164.2,0.0001799,2]
[398245810,1765455033792,-500.0,0.00017999,2]
[398245811,1765455033802,-500.0,0.00017999,2]
[398245812,1765455033812,-500.0,0.00017999,2]
[398245813,1765455033821,-500.0,0.00017999,2]
[398245814,1765455033831,-915.97,0.00017999,2]
[398245815,1765455033840,-100.5853926,0.00017999,2]
[398245816,1765455033852,-815.3846074,0.00017999,2]
[398245817,1765455034044,-534.22828192,0.00017999,2]
[398245818,1765455034060,-381.74171808,0.00017999,2]
[398245819,1765455034069,-71.87221744,0.00017999,2]
[398245820,1765455034080,-629.67,0.00017999,2]
[398245821,1765455034218,-214.42778256,0.00017999,2]
[398245822,1765455034227,-1000.0,0.00017999,2]
[398245823,1765455034236,-182.59271907,0.00017999,2]
[398245824,1765455034245,-25.61849411,0.00017999,2]
[398245828,1765455038245,-474.38150589,0.00017999,2]
[398245829,1765455038255,-360.16048475,0.00017999,2]
[398245830,1765455038269,-2234.1207322,0.00018,2]
[398245831,1765455038352,-8387.8792678,0.00018,2]
[398245832,1765455038362,-4089.0,0.00018,2]
[398245833,1765455038372,-8208.03201265,0.00018,2]
[398245834,1765455038384,-6617.87325848,0.00018,2]
[398245907,1765455040260,-1463.42,0.00018,2]
[398245908,1765455040271,-396.71618048,0.00018,2]
[398245909,1765455040368,-111042.71314204,0.00018,2]
[398245910,1765455040379,-763.45759774,0.00018,2]
[398245911,1765455040390,-427.39638274,0.00018,2]
[398245912,1765455040402,-16599.23770499,0.00018,2]
[398245913,1765455040534,-7858.31542939,0.00018,2]
[398245914,1765455040545,-523.34287504,0.00018,2]
[398245915,1765455040556,-12704.44840072,0.00018,2]
[398245916,1765455040566,-356.68236483,0.00018,2]
[398245917,1765455040577,-644.38,0.00018,2]
[398245918,1765455041382,-1.7e-07,0.00018,2]
[398245919,1765455041397,-688.63161696,0.00018,2]
[398245989,1765455043328,-235.6169,0.00015699,2]
[398245990,1765455043340,-4730.5639873,0.00018,2]
[398245991,1765455043539,-6076.04726811,0.00018,2]
[398245992,1765455043646,-345.69,0.00018,2]
[398246003,1765455046237,-436.86018137,0.000179,2]
[398246004,1765455048575,-302.51228284,0.000179,2]
[398246005,1765455048597,-846.14448667,0.000179,2]
[398246008,1765455098097,-547.84999983,0.00015699,2]
[398246009,1765455100891,-170.58861104,0.00015699,2]
[398246010,1765455102200,-9939.28641738,0.00015699,2]
[398246011,1765455102396,-243.04128463,0.00015699,2]
[398246012,1765455103290,-10000.01,0.00015699,2]
[398246013,1765455103618,-10000.01,0.00015699,2]
[398246014,1765455103819,-10000.01,0.00015699,2]
[398246015,1765455104030,-10000.01,0.00015699,2]
[398246016,1765455104237,-10000.01,0.00015699,2]
[398246017,1765455104396,-255.62028926,0.00015699,2]
[398246018,1765455104691,-10000.01,0.00015699,2]
[398246019,1765455105371,-10000.01,0.00015699,2]
[398246020,1765455105627,-10000.01,0.00015699,2]
[398246021,1765455105775,-10000.01,0.00015699,2]
[398246022,1765455106973,-341.94164838,0.00015699,2]
[398246023,1765455110380,-250.0,0.00015699,2]
[398246024,1765455112197,-221.57378239,0.00015699,2]
[398246025,1765455114666,-10000.01,0.00015699,2]
[398246026,1765455114888,-10000.01,0.00015699,2]
[398246027,1765455115135,-10000.01,0.00015699,2]
[398246028,1765455115345,-10000.01,0.00015699,2]
[398246029,1765455115548,-10000.01,0.00015699,2]
[398246030,1765455115797,-10000.01,0.00015699,2]
[398246031,1765455116089,-10000.01,0.00015699,2]
[398246032,1765455117541,-214.10793561,0.00015699,2]
[398246033,1765455119132,-499.20056182,0.00015699,2]
[398246034,1765455119226,-10000.01,0.00015699,2]
[398246035,1765455119539,-10000.01,0.00015699,2]
[398246036,1765455119807,-10000.01,0.00015699,2]
[398246037,1765455121882,-255.54462851,0.00015699,2]
[398246039,1765455136871,-300.0,0.00015698,2]
[398246040,1765455136901,-195.0,0.00015698,2]
[398246041,1765455136959,-9010.01,0.00015699,2]
[398246042,1765455136989,-10000.01,0.00015699,2]
[398246043,1765455137114,-10000.01,0.00015699,2]
[398246044,1765455137249,-10000.01,0.00015699,2]
[398246045,1765455137377,-10000.01,0.00015699,2]
[398246046,1765455137507,-10000.01,0.00015699,2]
[398246047,1765455137624,-10000.01,0.00015699,2]
[398246048,1765455137757,-10000.01,0.00015699,2]
[398246049,1765455137866,-10000.01,0.00015699,2]
[398246050,1765455173189,-164.01524872,0.00015599,2]
[398246051,1765455175845,-261.31862545,0.00015521,2]
[398246052,1765455177777,-174.36309255,0.00015521,2]
[398246053,1765455177800,-49.24576062,0.00015599,2]
[398246056,1765455179832,-191.83781892,0.00015599,2]
[398246057,1765455179856,-3.16218108,0.00015599,2]
[398246058,1765455182217,250.0,0.00015,2]
[398246059,1765455188180,-196.51230561,0.00015599,2]
[398246060,1765455188211,-300.0,0.00015697,2]
[398246061,1765455188247,-602.11233932,0.00015698,2]
[398246062,1765455188280,-500.0,0.00015698,2]
[398246063,1765455188313,-500.0,0.00015698,2]
[398246064,1765455188346,-515.40777233,0.00015698,2]
[398246065,1765455188378,-500.0,0.00015698,2]
[398246066,1765455188413,-500.0,0.00015698,2]
[398246067,1765455188614,-2521.94516548,0.00015699,2]
[398246068,1765455189125,-195.01700712,0.00015699,2]
[398246069,1765455190698,-195.0,0.00015699,2]
[398246097,1765455196073,-10000.01,0.00015699,2]
[398246124,1765455200425,-342.50363659,0.00015699,2]
[398246139,1765455202044,-480.65878685,0.00015699,2]
[398246156,1765455206446,-173.97754923,0.00015699,2]
[398246288,1765455335994,-1854.86774899,0.00015599,2]
[398246289,1765455336024,-300.0,0.00015698,2]
[398246290,1765455336054,-300.0,0.00015698,2]
[398246291,1765455336084,-1200.0,0.00015698,2]
[398246292,1765455336115,-300.0,0.00015698,2]
[398246293,1765455336147,-300.0,0.00015698,2]
[398246294,1765455336269,-1490.27450202,0.00015699,2]
[398246295,1765455336711,-10000.01,0.00015699,2]
[398246299,1765455338865,-10000.01,0.00015699,2]
[398246303,1765455342425,-10000.01,0.00015699,2]
[398246328,1765455368936,-549.46406427,0.00015599,2]
[398246329,1765455373005,-355.84347778,0.00015599,2]
[398246330,1765455375076,-205.2540755,0.00015599,2]
[398246331,1765455377250,-378.62302761,0.00015599,2]
[398246332,1765455382684,-153.72454986,0.00015599,2]
[398246333,1765455389235,-153.82872334,0.00015599,2]
[398246334,1765455390735,-237.1245924,0.00015599,2]
[398246335,1765455393717,-360.48622626,0.00015599,2]
[398246336,1765455398378,-304.59907603,0.00015599,2]
[398246337,1765455401526,-207.95096595,0.00015599,2]
[398246338,1765455404744,-248.2304521,0.00015599,2]
[398246341,1765455407360,-445.04634234,0.00015599,2]
[398246342,1765455409535,-240.174312,0.00015599,2]
[398246343,1765455413301,-197.43292463,0.00015599,2]
[398246344,1765455415902,-254.38348672,0.00015599,2]
[398246345,1765455417347,-331.54066141,0.00015599,2]
[398246347,1765455419995,-191.49345612,0.00015599,2]
[398246348,1765455422712,-168.45933859,0.00015599,2]
[398246349,1765455424785,-280.27209559,0.00015599,2]
[398246350,1765455429695,-334.05700596,0.00015599,2]
[398246352,1765455433228,-299.97059731,0.00015599,2]
[398246357,1765455438471,-243.04616353,0.00015599,2]
[398246358,1765455440012,-171.47246469,0.00015599,2]
[398246359,1765455442297,-158.98582877,0.00015599,2]
[398246360,1765455445174,-219.4470462,0.00015599,2]
[398246361,1765455448052,-338.82441795,0.00015599,2]
[398246362,1765455452551,-431.42216955,0.00015599,2]
[398246363,1765455454035,-437.4270472,0.00015599,2]
[398246364,1765455456304,-828.54133745,0.00015599,2]
[398246365,1765455457819,-166.917913,0.00015599,2]
[398246366,1765455462408,-195.0,0.00015599,2]
[398246367,1765455463978,-237.29972959,0.00015599,2]
[398246368,1765455466388,-256.44681387,0.00015599,2]
[398246369,1765455471829,-203.05923496,0.00015599,2]
[398246370,1765455474604,-205.6315199,0.00015599,2]
[398246371,1765455477336,-195.0,0.00015599,2]
[398246372,1765455480575,-240.98362092,0.00015599,2]
[398246373,1765455482801,-184.34739504,0.00015599,2]
[398246374,1765455487912,-174.66898404,0.00015598,2]
[398246375,1765455489454,-75.33101596,0.00015598,2]
[398246376,1765455489477,-174.66898404,0.00015598,2]
[398246377,1765455492537,-125.33101596,0.00015598,2]
[398246378,1765455492561,-198.03693304,0.00015599,2]
[398246379,1765455495716,-195.0,0.00015599,2]
[398246380,1765455495739,-101.96306696,0.00015599,2]
[398246381,1765455495761,-111.11091402,0.00015599,2]
[398246382,1765455497288,-188.88908598,0.00015599,2]
[398246383,1765455497313,-29.26400123,0.00015599,2]
[398246384,1765455641204,-1200.0,0.00015598,2]
[398246385,1765455641234,-300.0,0.00015598,2]
[398246386,1765455641283,-7000.01,0.00015599,2]
[398246387,1765455648187,-10000.01,0.00015599,2]
[398246391,1765455743439,175.63,0.00012322,2]
[398246393,1765455787078,500.0,0.00025,120]
[398246399,1765455878084,-210.48003481,0.00015336,2]
[398246400,1765455884730,-339.924948,0.00015336,2]
[398246401,1765455887372,-328.60968853,0.00015336,2]
[398246402,1765455890505,-290.43571445,0.00015336,2]
[398246403,1765455892646,-191.50851759,0.00015336,2]
[398246404,1765455895224,-238.41062657,0.00015336,2]
[398246407,1765455900577,-216.38189013,0.00015336,2]
[398246408,1765455902742,-200.0,0.00015336,2]
[398246409,1765455904455,-227.05400526,0.00015336,2]
[398246410,1765455906043,-176.92380103,0.00015336,2]
[398246411,1765455953743,-127.80077363,0.00015336,2]
[398246412,1765455953767,-39.18162247,0.00015467,2]
[398246414,1765455986215,-260.81837753,0.00015467,2]
[398246415,1765455986245,-300.0,0.00015598,2]
[398246416,1765455986281,-1200.0,0.00015598,2]
[398246417,1765455986310,-226.21266891,0.00015599,2]
[398246418,1765455986342,-300.0,0.00015599,2]
[398246419,1765455986373,-250.0,0.00015599,2]
[398246420,1765455986402,-300.0,0.00015599,2]
[398246421,1765455986440,-195.0,0.00015599,2]
[398246422,1765455986494,-250.0,0.00015599,2]
[398246423,1765455986531,-300.0,0.00015599,2]
[398246424,1765455986561,-302.43729832,0.00015599,2]
[398246425,1765455986590,-195.0,0.00015599,2]
[398246426,1765455986620,-541.635,0.00015599,2]
[398246427,1765455986985,-582.17331048,0.00015599,2]
[398246428,1765455996628,-1421.54699266,0.00015599,2]
[398246429,1765455996653,-7156.91601468,0.00015599,2]
[398246430,1765456015120,-220.9745459,0.00015599,2]
[398246431,1765456015140,-1000.0,0.00015599,2]
[398246432,1765456015161,-280.0,0.00015599,2]
[398246433,1765456015187,-2195.57566447,0.00015599,2]
[398246437,1765456097749,389.86741727,7.888e-05,2]
[398246439,1765456148806,250.0,0.00015,2]
[398246440,1765456185498,-706.88,0.00015485,2]
[398246441,1765456185535,-8586.25,0.00015499,2]
[398246442,1765456185709,-2636.60578984,0.00015499,2]
[398246443,1765456185739,-195.0,0.00015542,2]
[398246444,1765456185770,-390.8583,0.00015599,2]
[398246445,1765456185798,-243.4844,0.00015599,2]
[398246446,1765456185827,-1000.0,0.00015599,2]